Cogmind - Beta 11.1 @@@ ROGUE MODE // 2022.09.30 @ 13:54:30 Player: ILikeMonsters1890 Result: Destroyed by Enhanced Grunt with Neutron Cannon Performance ------------- Evolutions (3) 1500 Regions Visited (8) 1600 Robots Destroyed (97) 485 Value Destroyed (2477) 2477 Prototype IDs (20) 400 Alien Tech Used (0) 0 Bonus (311) 311 TOTAL SCORE: 6773 Bonus ------- High Alert Combat Kills 11 Met Data Miner 300 Cogmind --------- Core Integrity 0/700 Matter 297/300 Energy 324/325 System Corruption 10% Temperature Cool (0) Movement Rolling (130) Ox2 Location -7/Data Miner Parts ------- > --- POWER (2) -------- Antimatter Reactor > --- PROPULSION (4) --- Enhanced Flexi-carbon Leg Compact Wheel > --- UTILITY (5) ------ Small Storage Unit Improved Sensor Array Signal Interpreter Experimental Thermal Shield > --- WEAPON (2) ------- Neutron Cannon Heavy Hammer > --- INVENTORY (8) ---- Advanced Heat Sink Melee Analysis Suite Field Laser Field Laser Axe Peak State ------------ > --- POWER ------------ Antimatter Reactor > --- PROPULSION ------- Enhanced Flexi-carbon Leg Compact Wheel > --- UTILITY ---------- Small Storage Unit Improved Sensor Array Signal Interpreter Seismic Detector Experimental Thermal Shield > --- WEAPON ----------- Neutron Cannon Heavy Hammer > --- INVENTORY -------- Melee Analysis Suite Field Laser Field Laser Axe [Rating: 40] Favorites ----------- Power Ion Engine Engine Ion Engine Power Core Light Nuclear Core Reactor Antimatter Reactor Propulsion Wheel Leg Enhanced Flexi-carbon Leg Wheel Wheel Hover Unit Improved Airjet Flight Unit Improved VTOL Module Utility Cooling System Device Cooling System Storage High-capacity Storage Unit Processor Signal Interpreter Protection Light Armor Plating Weapon Advanced Beam Cannon Energy Gun Spread Laser Energy Cannon Advanced Beam Cannon Ballistic Gun Light Assault Rifle Ballistic Cannon Flak Cannon Launcher Heavy Rocket Launcher Impact Weapon Heavy Hammer Slashing Weapon Axe Build | -11 -10 -9 -9 -8 -7 -7 -7 -7 ------- Run | Scr Mat Mat Min Mat Fac Low Low Dat Slots Evolved 6 | . . 2 . 2 2 . . . Power 1 | . . . . . 1 . . . Propulsion 2 | . . 1 . . 1 . . . Utility 3 | . . 1 . 2 . . . . Weapon . | . . . . . . . . . Parts Attached 102 | 12 3 11 6 35 17 2 7 9 Power 10 | 1 . 1 1 2 2 1 1 1 Engine 7 | 1 . 1 1 2 . 1 1 . Core 2 | . . . . . 2 . . . Reactor 1 | . . . . . . . . 1 Propulsion 29 | 4 . 1 3 12 6 . 1 2 Treads . | . . . . . . . . . Leg 1 | . . . . . . . . 1 Wheel 22 | 4 . 1 3 11 2 . . 1 Hover 1 | . . . . . 1 . . . Flight 5 | . . . . 1 3 . 1 . Utility 35 | 3 1 5 2 14 6 1 . 3 Device 19 | 2 1 2 . 7 3 1 . 3 Storage 4 | 1 . 2 . . 1 . . . Processor 2 | . . . . 1 1 . . . Hackware . | . . . . . . . . . Protection 10 | . . 1 2 6 1 . . . Artifact . | . . . . . . . . . Weapon 28 | 4 2 4 . 7 3 . 5 3 Energy Gun 6 | 3 2 . . . 1 . . . Energy Cannon 8 | . . 2 . 5 . . . 1 Ballistic Gun 3 | 1 . 2 . . . . . . Ballistic Cannon 2 | . . . . 1 1 . . . Launcher 5 | . . . . 1 . . 3 1 Special Weapon . | . . . . . . . . . Impact Weapon 1 | . . . . . 1 . . . Slashing Weapon 3 | . . . . . . . 2 1 Piercing Weapon . | . . . . . . . . . Special Melee Weapon . | . . . . . . . . . Unidentified Prototypes 7 | . . 1 . 2 1 . . 3 Corrupted Parts 1 | . . . . . . . . 1 System Corruption 7 | . . . . . . . . 7 Parts Lost 35 | . . . 4 16 . 2 2 11 Power 5 | . . . . 1 . 1 1 2 Propulsion 14 | . . . 2 7 . . 1 4 Utility 12 | . . . 2 5 . 1 . 4 Weapon 4 | . . . . 3 . . . 1 Highest Loss Streak 10 | . . . 4 4 . 2 1 10 To Critical Strikes . | . . . . . . . . . Average Slot Usage (%) 97 | . 100 100 99 97 94 98 97 78 Engine 9 | . 14 11 11 9 4 1 14 6 Core 1 | . . . . . 7 12 . . Wheel 23 | . 28 33 32 25 14 7 7 6 Flight 4 | . . . . . 15 23 23 11 Device 16 | . 14 12 11 17 18 22 23 19 Storage 9 | . 14 11 11 9 7 7 7 7 Processor 5 | . . . . 9 8 7 7 7 Protection 6 | . . 9 11 8 2 . . . Energy Gun 2 | . 28 3 . . 2 6 . . Energy Cannon 10 | . . 13 22 14 2 . . 2 Ballistic Gun 1 | . . 5 . . . . . . Ballistic Cannon 1 | . . . . 2 2 . . . Impact Weapon 1 | . . . . . 4 7 7 7 Naked Turns . | . . . . . . . . . Heaviest Build 70 | 15 18 58 58 70 70 24 23 37 Greatest Support 58 | 32 20 30 30 48 58 24 23 23 Greatest Overweight (x) 4 | . . 1 1 4 1 . . 2 Average Overweight (x) . | . . . 1 1 . . . . Largest Inventory Capacity 20 | 8 8 20 20 20 20 8 8 8 Average Capacity 14 | 7 8 11 20 20 12 8 8 8 Most Carried 20 | 8 8 20 20 20 19 8 8 7 Average Carried 12 | 5 7 10 17 17 11 7 6 5 Final Capacity 20 | 8 8 20 20 20 8 8 8 8 Final Carried 20 | 8 8 20 18 19 8 7 7 5 Class Distribution -------------------- 80% | Scavenger-Mutant 17% | Mutant Dominant Class ---------------- Mutant | -10/Materials Scavenger-Mutant | -9/Materials Scavenger-Mutant | -9/Mines Scavenger-Mutant | -8/Materials Scavenger-Mutant | -7/Factory Scavenger-Mutant | -7/Lower Caves Scavenger-Mutant | -7/Lower Caves Scavenger-Mutant | -7/Data Miner Resources | -11 -10 -9 -9 -8 -7 -7 -7 -7 ----------- Run | Scr Mat Mat Min Mat Fac Low Low Dat Matter Collected 1564 | 382 17 203 55 503 140 50 118 96 Remotely . | . . . . . . . . . Salvage Created 3383 | 228 17 903 194 1428 158 34 172 249 Parts 181 | 23 . 61 4 76 1 . 10 6 Haulers Intercepted 9 | . . 3 . 5 1 . . . Recyclers Shooed 2 | . . . . 2 . . . . Parts Field Recycled . | . . . . . . . . . Retrieved Matter . | . . . . . . . . . Parts Self-Destructed 4 | . . . . . . 1 3 . Prevented . | . . . . . . . . . Kills | -11 -10 -9 -9 -8 -7 -7 -7 -7 ------- Run | Scr Mat Mat Min Mat Fac Low Low Dat Combat Hostiles Destroyed 67 | . 1 16 10 26 . 1 10 3 Melee 1 | . . . . . . . . 1 Guns 4 | . 1 3 . . . . . . Cannons 49 | . . 13 10 26 . . . . AOE 10 | . . . . . . . 10 . Classes Destroyed 15 | 2 1 6 3 2 . 1 . . Worker 4 | . . 1 . 3 . . . . Builder 2 | . . . 1 . 1 . . . Tunneler 9 | 8 . . . 1 . . . . Hauler 9 | . . 3 . 5 1 . . . Recycler 6 | 1 . 2 . 2 1 . . . Operator 1 | . . 1 . . . . . . Watcher 4 | . . 2 . 2 . . . . Swarmer 25 | . . 6 3 9 . . 7 . Grunt 17 | . 1 4 1 9 . . 2 . Brawler 2 | . . . . 1 . . 1 . Sentry 11 | . . 6 . 5 . . . . Demolisher 1 | . . . 1 . . . . . Hunter 2 | . . . . 2 . . . . Programmer 1 | . . . . . . 1 . . Enhanced Grunt 3 | . . . . . . . . 3 Assembled 5 | . . . 5 . . . . . Best Kill Streak 6 | 3 1 6 4 5 2 1 4 3 Combat Bots Only 6 | . 1 6 4 4 . 1 4 3 Max Kills in Single Turn 3 | 1 1 1 1 1 1 1 3 1 Gunslinging . | . . . . . . . . . Exploded 3 | . . . . . . . 3 . Melee 1 | . . . . . . . . 1 Uniques/NPCs Destroyed . | . . . . . . . . . Combat | -11 -10 -9 -9 -8 -7 -7 -7 -7 -------- Run | Scr Mat Mat Min Mat Fac Low Low Dat Damage Taken 3774 | . 31 322 454 1500 43 196 182 1046 Core 995 | . 17 46 45 186 28 38 28 607 Absorbed by Shields . | . . . . . . . . . Regen/Repaired (Parts) 110 | . . . . 110 . . . . Core Remaining (%) 84 | 100 93 . 77 66 . . . . Volleys Fired 250 | 62 4 41 34 103 . . 6 . Largest 2 | 1 2 2 2 2 . . 1 . Hottest 136 | 20 130 136 136 136 . . 39 . Shots Fired 431 | 62 8 82 68 205 . . 6 . Gun 94 | 62 8 24 . . . . . . Cannon 331 | . . 58 68 205 . . . . Launcher 6 | . . . . . . . 6 . Special . | . . . . . . . . . Kinetic 115 | 62 . 20 . 33 . . . . Thermal 310 | . 8 62 68 172 . . . . Explosive 6 | . . . . . . . 6 . Electromagnetic . | . . . . . . . . . Robot Hit Streak 16 | 10 15 7 4 16 . . 3 . Robot Miss Streak 6 | 2 2 6 3 5 . . 1 . Penetration Max . | . . . . . . . . . Secondary Targets . | . . . . . . . . . Shots Hit Robots 286 | 44 8 46 33 130 3 6 5 11 Core Hits 159 | 17 8 32 12 73 . . 15 2 Critical Kills 2 | . . . . 1 . . . 1 Critical Parts Destroyed 5 | . . . . . . 2 . 3 Critical Strikes 7 | . . . . 1 . 2 . 4 Meltdown 1 | . . . . 1 . . . . Smash 6 | . . . . . . 2 . 4 Melee Attacks 38 | . . . . . 5 8 . 25 Impact 36 | . . . . . 5 8 . 23 Slashing 2 | . . . . . . . . 2 Piercing . | . . . . . . . . . Sneak Attacks 4 | . . . . . 3 . . 1 Combat Hostiles . | . . . . . . . . . Follow-up Attacks . | . . . . . . . . . Damage Inflicted 6655 | 392 145 956 717 2766 192 246 815 426 Guns 803 | 392 145 266 . . . . . . Cannons 4162 | . . 679 717 2766 . . . . Explosions 815 | . . . . . . . 815 . Melee 864 | . . . . . 192 246 . 426 Ramming 11 | . . 11 . . . . . . Kinetic 1190 | 392 . 221 . 577 . . . . Thermal 3775 | . 145 724 717 2189 . . . . Explosive 815 | . . . . . . . 815 . Electromagnetic . | . . . . . . . . . Impact 864 | . . . . . 192 246 . 426 Slashing . | . . . . . . . . . Piercing . | . . . . . . . . . Highest Corruption 10 | . . . . . . 3 3 10 Average Corruption 3 | . . . . . . 2 3 4 Corruption Purged . | . . . . . . . . . Corruption Blocked . | . . . . . . . . . Effects 9 | . . . . . . 1 4 4 Message Errors 1 | . . . . . . . . 1 Matter Fused 4 | . . . . . . . 2 2 Data Loss (minor) 3 | . . . . . . 1 1 1 Data Loss (major) 1 | . . . . . . . 1 . Overload Shots . | . . . . . . . . . Overflow Damage 427 | . . 2 9 30 92 134 7 153 Projectiles 41 | . . 2 9 30 . . . . Explosions 7 | . . . . . . . 7 . Melee 379 | . . . . . 92 134 . 153 Knockbacks 22 | . . . . 12 2 2 . 6 Impact 9 | . . . . . 2 2 . 5 Kinetic 11 | . . . . 11 . . . . Secondary 2 | . . . . 1 . . . 1 Self-Inflicted Damage 56 | . . 5 . . . . 51 . Shots 1 | . . . . . . . 1 . Rammed 1 | . . 1 . . . . . . Targets Rammed 1 | . . 1 . . . . . . Kicked . | . . . . . . . . . Crushed . | . . . . . . . . . Highest Temperature 129 | . 30 63 87 129 1 1 7 . Average Temperature 22 | . 17 15 27 24 1 1 6 . Received Heat Transfer 633 | . 18 51 108 405 9 24 18 . Siege Activations . | . . . . . . . . . Robots Corrupted . | . . . . . . . . . Combat Hostiles . | . . . . . . . . . Parts Fried 15 | . . . . . 7 . . 8 Impact Corruptions 15 | . . . . . 5 5 . 5 Robots Melted 1 | . . . . 1 . . . . Combat Hostiles . | . . . . . . . . . Parts Melted 14 | . . 2 3 9 . . . . Heat Transferred 6710 | . 175 1281 1295 3959 . . . . Parts Sabotaged . | . . . . . . . . . Parts Stolen . | . . . . . . . . . Parts Stripped . | . . . . . . . . . Power Chain Reactions . | . . . . . . . . . Missiles Intercepted . | . . . . . . . . . Alert | -11 -10 -9 -9 -8 -7 -7 -7 -7 ------- Run | Scr Mat Mat Min Mat Fac Low Low Dat Peak Influence 443 | 40 78 443 224 380 189 . . . Initial 114 | . 3 32 114 87 88 . . . Average 163 | 18 39 153 177 234 116 . . . Maximum Alert Level 2 | . . 2 1 1 . . . . Low Security (%) 59 | 100 100 64 53 30 100 . . . Level 1 39 | . . 29 46 69 . . . . Level 2 1 | . . 5 . . . . . . Level 3 . | . . . . . . . . . Level 4 . | . . . . . . . . . Level 5 . | . . . . . . . . . High Security . | . . . . . . . . . Max Security . | . . . . . . . . . Squads Dispatched 7 | . . 3 . 3 1 . . . Investigation 3 | . . . . 2 1 . . . Extermination . | . . . . . . . . . Reinforcement 4 | . . 3 . 1 . . . . Assault . | . . . . . . . . . Garrison . | . . . . . . . . . Intercept . | . . . . . . . . . Searches Triggered . | . . . . . . . . . Construction Impeded . | . . . . . . . . . Haulers Reinforced . | . . . . . . . . . Active Scanning Responses . | . . . . . . . . . Cargo Convoy Interrupts . | . . . . . . . . . Stealth | -11 -10 -9 -9 -8 -7 -7 -7 -7 --------- Run | Scr Mat Mat Min Mat Fac Low Low Dat Distress Signals 5 | . . 1 . 4 . . . . Communications Jammed . | . . . . . . . . . Distress Signals . | . . . . . . . . . Times Spotted 110 | . 3 24 15 41 6 5 12 4 Peak Tracking Total 7 | . 2 7 4 6 3 3 5 3 Tactical Retreats 11 | . 2 . 1 3 1 2 2 . Traps | -11 -10 -9 -9 -8 -7 -7 -7 -7 ------- Run | Scr Mat Mat Min Mat Fac Low Low Dat Traps Triggered 2 | . . . . 2 . . . . Indirectly . | . . . . . . . . . Trap Hack Attempts . | . . . . . . . . . Triggered . | . . . . . . . . . Disarmed . | . . . . . . . . . Reprogrammed . | . . . . . . . . . Reused . | . . . . . . . . . Traps Extracted . | . . . . . . . . . Installed . | . . . . . . . . . Triggered . | . . . . . . . . . Machines | -11 -10 -9 -9 -8 -7 -7 -7 -7 ---------- Run | Scr Mat Mat Min Mat Fac Low Low Dat Machines Disabled 4 | . . 2 . 1 . . . 1 Max in Single Turn 1 | . . 1 . 1 . . . 1 Garrison Access 1 | . . . . 1 . . . . Machines Sabotaged . | . . . . . . . . . Garrisons Compromised . | . . . . . . . . . Overloaded Fab Kills . | . . . . . . . . . Hacking | -11 -10 -9 -9 -8 -7 -7 -7 -7 --------- Run | Scr Mat Mat Min Mat Fac Low Low Dat Machines Accessed 26 | . 1 5 . 11 5 . . 4 Terminals 15 | . . 4 . 6 5 . . . Fabricators . | . . . . . . . . . Repair Stations 1 | . . . . 1 . . . . Recycling Units 4 | . 1 1 . 2 . . . . Scanalyzers 1 | . . . . 1 . . . . Garrison Access 1 | . . . . 1 . . . . Total Hacks 93 | . 1 15 . 34 13 . . 30 Successful 62 | . . 7 . 20 5 . . 30 Failed 31 | . 1 8 . 14 8 . . . Catastrophic 3 | . . 1 . 1 1 . . . Database Lockouts . | . . . . . . . . . Manual 17 | . . 3 . 10 4 . . . Terminals 43 | . . 9 . 21 13 . . . Fabricators . | . . . . . . . . . Repair Stations 2 | . . . . 2 . . . . Recycling Units 12 | . 1 6 . 5 . . . . Scanalyzers 4 | . . . . 4 . . . . Garrison Access 2 | . . . . 2 . . . . Terminal Hacks 50 | . . 4 . 12 4 . . 30 Record 12 | . . . . . 1 . . 11 Part Schematic 13 | . . . . . . . . 13 Robot Schematic 3 | . . . . . . . . 3 Robot Analysis 1 | . . . . . 1 . . . Prototype ID Bank 4 | . . 1 . . . . . 3 Branch Access Points 2 | . . 1 . 1 . . . . Emergency Access Points 1 | . . . . 1 . . . . Terminal Index 1 | . . 1 . . . . . . Alert Level 2 | . . . . 2 . . . . Unreport Threat 2 | . . 1 . 1 . . . . Transport Status 1 | . . . . 1 . . . . Recall Investigation 1 | . . . . 1 . . . . Hauler Manifests 1 | . . . . 1 . . . . Zone Layout 6 | . . . . 4 2 . . . Fabricator Hacks . | . . . . . . . . . Repair Station Hacks 2 | . . . . 2 . . . . Scan Component 1 | . . . . 1 . . . . Repair 1 | . . . . 1 . . . . Recycling Unit Hacks 5 | . . 3 . 2 . . . . Report Inventory 1 | . . 1 . . . . . . Retrieve Matter 1 | . . 1 . . . . . . Retrieve Components 3 | . . 1 . 2 . . . . Scanalyzer 2 | . . . . 2 . . . . Insert Component 1 | . . . . 1 . . . . Analyze 1 | . . . . 1 . . . . Garrison Access Hacks 1 | . . . . 1 . . . . Seal Access 1 | . . . . 1 . . . . Unauthorized Hacks 2 | . . . . 1 1 . . . Terminals 1 | . . . . . 1 . . . Assimilate 1 | . . . . . 1 . . . Fabricators . | . . . . . . . . . Repair Stations . | . . . . . . . . . Recycling Units 1 | . . . . 1 . . . . Reject 1 | . . . . 1 . . . . Scanalyzers . | . . . . . . . . . Garrison Access . | . . . . . . . . . Data Cores Recovered . | . . . . . . . . . Used . | . . . . . . . . . Hacking Detections 20 | . 1 5 . 9 5 . . . Full Trace Events 2 | . . . . 1 1 . . . Feedback Events . | . . . . . . . . . Feedback Blocked . | . . . . . . . . . Robot Schematics Acquired 3 | . . . . . . . . 3 Robots Built . | . . . . . . . . . Authchips . | . . . . . . . . . Time . | . . . . . . . . . Total Robot Build Rating . | . . . . . . . . . Part Schematics Acquired 14 | . . . . 1 . . . 13 Parts Built . | . . . . . . . . . Authchips . | . . . . . . . . . Time . | . . . . . . . . . Total Part Build Rating . | . . . . . . . . . Parts Repaired 1 | . . . . 1 . . . . Time 51 | . . . . 51 . . . . Parts Recycled . | . . . . . . . . . Recycled Matter . | . . . . . . . . . Retrieved Matter . | . . . . . . . . . Retrieved Components 13 | . . 3 . 10 . . . . Parts Scanalyzed 1 | . . . . 1 . . . . Part Schematics Acquired 1 | . . . . 1 . . . . Parts Damaged . | . . . . . . . . . Bothacking | -11 -10 -9 -9 -8 -7 -7 -7 -7 ------------ Run | Scr Mat Mat Min Mat Fac Low Low Dat Used RIF Installer . | . . . . . . . . . Robots Hacked . | . . . . . . . . . Non-combat . | . . . . . . . . . Combat . | . . . . . . . . . Robot Hacks Applied . | . . . . . . . . . Relay Couplers Released . | . . . . . . . . . Fabnet Peak Effective % . | . . . . . . . . . Robots Rewired . | . . . . . . . . . Allies Hacked . | . . . . . . . . . Hacks Repelled . | . . . . . . . . . Allies | -11 -10 -9 -9 -8 -7 -7 -7 -7 -------- Run | Scr Mat Mat Min Mat Fac Low Low Dat Total Allies 1 | . . . . . 1 . . . Largest Group 1 | . . . . . 1 . . . Highest-Rated Group 26 | . . . . . 26 . . . Highest-Rated Ally 26 | . . . . . 26 . . . Total Orders . | . . . . . . . . . Ally Attacks . | . . . . . . . . . Total Damage . | . . . . . . . . . Kills . | . . . . . . . . . Allies Corrupted . | . . . . . . . . . Allies Melted . | . . . . . . . . . Intel | -11 -10 -9 -9 -8 -7 -7 -7 -7 ------- Run | Scr Mat Mat Min Mat Fac Low Low Dat Robot Analysis Total 1 | . . . . . 1 . . . Derelict Logs Recovered . | . . . . . . . . . Drone Launches . | . . . . . . . . . Drone Recoveries . | . . . . . . . . . Exploration | -11 -10 -9 -9 -8 -7 -7 -7 -7 ------------- Run | Scr Mat Mat Min Mat Fac Low Low Dat Turns Passed 4492 | 443 218 804 317 1611 412 205 259 223 Spaces Moved 4291 | 355 188 635 211 1004 773 458 537 130 Core 15 | 14 . . . . . . . 1 Treads . | . . . . . . . . . Legs . | . . . . . . . . . Wheels 2533 | 341 188 635 211 1004 108 . . 46 Hover . | . . . . . . . . . Flight 1743 | . . . . . 665 458 537 83 Fastest Speed 34 | 50 80 80 95 95 34 34 34 34 Average Speed 69 | 82 80 83 95 104 44 34 34 67 Slowest Speed 160 | 100 80 95 95 160 110 34 37 150 Overloaded Moves . | . . . . . . . . . Propulsion Burnouts . | . . . . . . . . . Robots Hopped 2 | . . . . . . 1 1 . Cave-ins Triggered . | . . . . . . . . . Exploration Rate (%) 48 | 11 33 43 55 71 23 58 63 80 Regions Visited 8 Branch Regions 4 Pre-discovered Areas 1 | . . . . . . . . 1 Known Exits Taken 5 | . . 1 . 1 1 1 1 . Unknown Exits Taken 3 | 1 1 . 1 . . . . . Scrap Searched 6 | . . . 2 . . 1 3 . Spaces Dug 2 | . . . . . 2 . . . Terrain Destroyed 83 | . . . 9 . 2 . 72 . Melee 2 | . . . . . 2 . . . Projectile 9 | . . . 9 . . . . . AOE 72 | . . . . . . . 72 . Terrain Rammed . | . . . . . . . . . Walls Destroyed . | . . . . . . . . . Machines Disabled . | . . . . . . . . . Actions | -11 -10 -9 -9 -8 -7 -7 -7 -7 --------- Run | Scr Mat Mat Min Mat Fac Low Low Dat Total 5305 | 457 248 831 259 1354 835 492 605 224 Wait 464 | . 44 104 3 174 5 25 52 57 Move 4278 | 354 187 634 210 1003 771 455 534 130 Hop 2 | . . . . . . 1 1 . Pick Up 110 | 22 5 27 4 31 13 . 3 5 Fast Attach . | . . . . . . . . . Attach 54 | 7 . 2 4 22 5 2 5 7 Detach 5 | . . . . . 2 1 2 . Swap 48 | 5 3 9 2 13 12 . 2 2 Drop 56 | 7 5 13 2 8 21 . . . Fire 250 | 62 4 41 34 103 . . 6 . Melee 36 | . . . . . 5 8 . 23 Ram 1 | . . 1 . . . . . . Kick . | . . . . . . . . . Crush . | . . . . . . . . . Escape Stasis 1 | . . . . . 1 . . . Rewire . | . . . . . . . . . Trap . | . . . . . . . . . Miscellaneous . | . . . . . . . . . Route ------- -11/Scrapyard -10/Materials -9/Materials (discovered 3 exits: *Min / Sto x2) -9/Mines -8/Materials -7/Factory (discovered 2 exits: *Fac / *Low) -7/Lower Caves -7/Lower Caves -7/Data Miner (discovered 1 exit: *Pro) History --------- Turn | Location | Event 21 | -11/Scrapyard | Discovered new exit (range 16) 444 | -11/Scrapyard | Entered Materials 449 | -10/Materials | Build established: Mutant 627 | -10/Materials | Discovered new exit (range 15) 662 | -10/Materials | Entered another Materials area 662 | -9/Materials | Evolved 2 slots: Propulsion x1, Utility x1 672 | -9/Materials | Identified exit to Mines 672 | -9/Materials | Identified exit to Storage 1021 | -9/Materials | Build established: Scavenger-Mutant 1466 | -9/Materials | Entered Mines 1467 | -9/Mines | Assembled infested the area 1472 | -9/Mines | Assisted by a Guerilla fighting off Assembled 1545 | -9/Mines | Lost 4 parts (2n2u) 1768 | -9/Mines | Discovered new exit (range 10) 1783 | -9/Mines | Entered Materials 1783 | -8/Materials | Evolved 2 slots: Utility x2 1874 | -8/Materials | Lost 3 parts (1n1u1w) 2241 | -8/Materials | Repaired Adv. Beam Cannon 2460 | -8/Materials | Lost 4 parts (2n1u1w) 2953 | -8/Materials | Lost 3 parts (2n1w) 3368 | -8/Materials | Discovered new exit (range 8) 3393 | -8/Materials | Identified exit to Factory 3394 | -8/Materials | Entered Factory 3394 | -7/Factory | Evolved 2 slots: Power x1, Propulsion x1 3761 | -7/Factory | Discovered new exit (range 16) 3766 | -7/Factory | Identified exit to Factory 3791 | -7/Factory | Discovered new exit (range 7) 3793 | -7/Factory | Identified exit to Lower Caves 3806 | -7/Factory | Entered Lower Caves 3874 | -7/Lower Caves | Spotted B-75 Beast 3875 | -7/Lower Caves | Encountered a Warlord checkpoint 3905 | -7/Lower Caves | Attracted the attention of an 0b10 checkpoint 4009 | -7/Lower Caves | Discovered new exit (range 8) 4011 | -7/Lower Caves | Identified exit to Lower Caves 4011 | -7/Lower Caves | Entered another Lower Caves area 4115 | -7/Lower Caves | Encountered a Warlord checkpoint 4266 | -7/Lower Caves | Discovered new exit (range 12) 4269 | -7/Lower Caves | Identified exit to Data Miner 4270 | -7/Lower Caves | Entered Data Miner 4270 | -7/Data Miner | Discovered new exit (range 6) 4273 | -7/Data Miner | Identified exit to Proximity Caves 4277 | -7/Data Miner | Met Data Miner 4283 | -7/Data Miner | Learned location of Section 7 (-2) 4283 | -7/Data Miner | Acquired the access code to Warlord's prototype stash 4289 | -7/Data Miner | Received God Mode back door access code from Data Miner 4292 | -7/Data Miner | Data Conduit disabled 4381 | -7/Data Miner | Core integrity fell below 50% 4391 | -7/Data Miner | Core integrity fell below 20% 4413 | -7/Data Miner | Found Prototype Device 4414 | -7/Data Miner | Identified Exp. Thermal Shield 4417 | -7/Data Miner | Lost 10 parts (2p4n3u1w) 4438 | -7/Data Miner | System corruption reached 10% 4493 | -7/Data Miner | Destroyed by Enhanced Grunt with Neutron Cannon Last Messages --------------- 04409_ Identified Neutron Cannon. 04410_ Acquired 10 matter. 04413_ Acquired Prototype Device. 04414_ Identified Exp. Thermal Shield. 04416_ Acquired Antimatter Reactor. 04430_ Acquired 20 matter. 04434_ System corrupted: Matter fused (-8). 04434_ Acquired Corrupted Prototype Leg. 04436_ Acquired 8 matter. 04437_ Identified Enh. Flexi-carbon Leg. 04437_ Integrated Corrupted Enh. Flexi-carbon Leg (+7). 04437_ Complication: System interference. 04437_ Exp. Thermal Shield temporarily disabled. 04437_ Imp. Sensor Array temporarily disabled. 04437_ Signal Interpreter temporarily disabled. 04438_ Acquired 10 matter. 04454_ Acquired Adv. Heat Sink. 04470_ System corrupted: Matter fused (-8). 04485_ System corrupted: Component data lost. 04491_ Seismic Detector destroyed. Map ----- +----------------------------------------------------+ | | | | | | | | | | | | | | | | | | | | | | | | | | | | | | | | | | | ?????????????????????????????????????????? | | ?????????????????????????????????????????? | | ?????????????????????????????????????????? | | ##???????????????????????????????????????? | | ##??????????????????????????####????????? | | #"###########????#########?### #????????? | | """"""""""###### # # # ### #????????? | | """"" " """"""# # # # ## > ##????????? | | """"" @ ######???? | | "" #???? | | " #???? | | #???? | | "" ##???? | | "" g """"""""""""""""#####????? | | """ """"###############????????? | | """ """""###??????????????????????? | | """"" "#####????????????????????????? | | ####"## "#????????????????????????????? | | ???#"### "#????????????????????????????? | | ???#"### "#????????????????????????????? | | ???#"## "#????????????????????????????? | | ????"## "#????????????????????????????? | | ?????# "#????????????????????????????? | | ?????### "#????????????????????????????? | | ???????# "##???????????????????????????? | | ??????## ""#???????????????????????????? | | ?????## ""#???????????????????????????? | | ??##"#"X ""#???????????????????????????? | | ??""""" "####????????????????????????? | | ??""""" X"""""????????????????????????? | | ??##"#"X "##"#????????????????????????? | | ???#?## X""""#????????????????????????? | | ??????## "##"#????????????????????????? | +----------------------------------------------------+ Best States ------------- Heat Dissipation 56 Energy Generation 24 Energy Capacity 335 Matter Stores 300 Matter Capacity 300 Sight Range 18 Robot Scan Range 15 Terrain Scan Range 16 Terrain Scan Density 10 ECM Strength 1 Jamming Range 12 Additional Mass Support 9 Armor Coverage 225 Resistance: TH 30 Resistance: EM 15 Evasion (%) 71 Item Schematics ----------------- Imp. VTOL Module | -8/Materials | Scanalyzed Combat Drone Bay | -7/Data Miner | Free Lgt. Regenerative Plating | -7/Data Miner | Free Cld. Cesium-ion Thruster | -7/Data Miner | Free Thermal Defense Suite | -7/Data Miner | Free Ion Burst Cannon | -7/Data Miner | Free Linear Gravjet | -7/Data Miner | Free Recoil Nullifier | -7/Data Miner | Free Hvy. Phase Cannon | -7/Data Miner | Free Drone Bay | -7/Data Miner | Free Nuclear Pulse Array | -7/Data Miner | Free Hyp. Coil Gun | -7/Data Miner | Free Adv. Cryofiber Web | -7/Data Miner | Free Adv. Actuator Array | -7/Data Miner | Free Robot Schematics ------------------ S-27 Virus | -7/Data Miner | Free Y-54 Guardian | -7/Data Miner | Free R-10 Processor | -7/Data Miner | Free Fabricated ------------ Nothing Alien Tech Used ----------------- None Achievements -------------- None Challenges ------------ None Game ------ Seed SmallMassMaul Manual? 0 Play Time 01:13:19 Cumulative 68.6 hours Start 2022.09.30 @ 12:40:34 End 2022.09.30 @ 13:54:30 Sessions 1 Manual Loads 0 Difficulty Rogue Special Mode None Game No. 75 Rogue 75 Adventurer 0 Explorer 0 Win Type - Total 0 Types 0/0/0/0/0/0/0/0/0 Lore% 53 Gallery% 42 Achievement% 36 Wizard Run 0 Options --------- ASCII 0 Keyboard 0 Movement Numpad Keybinds 0 Fullscreen 2 Font 18/SmallcapsGlow Map View 76x50 Tactical HUD 1 Map Filters NONE Filters NONE Steam 1 RUN: 230dc6ea-bdfe-4ca6-8b97-cfe96f8a191a